Cogmind - Beta 12 @@@ ROGUE MODE // 2024.01.25 @ 08:56:30 Player: Dosh Result: Destroyed by 8R-AWN with 8R-AWN's Boregun Performance ------------- Evolutions (0) 0 Regions Visited (2) 400 Robots Destroyed (21) 105 Value Destroyed (633) 633 Prototype IDs (0) 0 Alien Tech Used (0) 0 Bonus (0) 0 TOTAL SCORE: 1138 Bonus ------- None Cogmind --------- Core Integrity 0/250 Matter 247/300 Energy 230/250 System Corruption 1% Temperature Cool (36) Movement Rolling (95) Ox1 Location -10/Mines Parts ------- > --- POWER (1) -------- Ion Engine > --- PROPULSION (2) --- Wheel > --- UTILITY (2) ------ Medium Storage Unit > --- WEAPON (2) ------- Light Assault Rifle > --- INVENTORY (10) --- Light Ion Engine Small Storage Unit High-capacity Storage Unit Structural Scanner Hacking Suite Light Assault Rifle Peak State ------------ > --- POWER ------------ Ion Engine > --- PROPULSION ------- Light Treads Light Treads > --- UTILITY ---------- Medium Storage Unit Light Armor Plating > --- WEAPON ----------- Assault Rifle Light Assault Rifle > --- INVENTORY -------- Light Ion Engine Wheel Small Storage Unit High-capacity Storage Unit Structural Scanner Hacking Suite Light Assault Rifle Grenade Launcher [Rating: 8] Favorites ----------- Power Ion Engine Engine Ion Engine Propulsion Light Treads Treads Light Treads Wheel Wheel Utility Light Armor Plating Storage Small Storage Unit Protection Light Armor Plating Weapon Light Assault Rifle Energy Gun EM Pulse Gun Ballistic Gun Light Assault Rifle Launcher Grenade Launcher Build | -11 -10 -10 ------- Run | Jun Mat Min Slots Evolved . | . . . Power . | . . . Propulsion . | . . . Utility . | . . . Weapon . | . . . Parts Attached 22 | 6 14 2 Power 4 | 1 3 . Engine 4 | 1 3 . Core . | . . . Reactor . | . . . Propulsion 7 | 2 4 1 Treads 5 | 2 3 . Leg . | . . . Wheel 2 | . 1 1 Hover . | . . . Flight . | . . . Utility 3 | 1 2 . Device . | . . . Storage 2 | 1 1 . Processor . | . . . Hackware . | . . . Protection 1 | . 1 . Artifact . | . . . Weapon 8 | 2 5 1 Energy Gun 2 | 1 1 . Energy Cannon . | . . . Ballistic Gun 5 | 1 4 . Ballistic Cannon . | . . . Launcher 1 | . . 1 Special Weapon . | . . . Impact Weapon . | . . . Slashing Weapon . | . . . Piercing Weapon . | . . . Special Melee Weapon . | . . . Unidentified Prototypes . | . . . Parts Lost 7 | . 4 3 Power 1 | . 1 . Propulsion 2 | . 1 1 Utility 1 | . . 1 Weapon 3 | . 2 1 Highest Loss Streak 3 | . 2 3 To Critical Strikes . | . . . Average Slot Usage (%) 92 | . 92 92 Engine 13 | . 13 14 Treads 25 | . 25 14 Wheel 1 | . 1 14 Storage 14 | . 14 14 Protection 9 | . 9 7 Energy Gun 2 | . 2 . Ballistic Gun 24 | . 24 21 Naked Turns . | . . . Heaviest Build 21 | 11 21 20 Greatest Support 40 | 40 40 10 Greatest Overweight (x) 2 | . 2 1 Average Overweight (x) . | . . 1 Largest Inventory Capacity 10 | 8 10 10 Average Capacity 8 | 6 8 10 Most Carried 8 | 3 8 7 Average Carried 5 | 1 5 7 Final Capacity 10 | 8 10 10 Final Carried 7 | 3 7 6 Class Distribution -------------------- 100% | Mutant Dominant Class ---------------- Mutant | -10/Materials Mutant | -10/Mines Resources | -11 -10 -10 ----------- Run | Jun Mat Min Matter Collected 611 | 242 369 . Remotely . | . . . Salvage Created 765 | . 722 43 Parts 48 | . 46 2 Haulers Intercepted . | . . . Recyclers Shooed . | . . . Parts Field Recycled . | . . . Retrieved Matter . | . . . Parts Self-Destructed . | . . . Prevented . | . . . Kills | -11 -10 -10 ------- Run | Jun Mat Min Combat Hostiles Destroyed 27 | . 16 11 Guns 15 | . 15 . AOE 12 | . 1 11 Classes Destroyed 5 | . 4 1 Worker 2 | . 1 1 Operator 1 | . 1 . Watcher 2 | . 2 . Grunt 16 | . 16 . Assembled 11 | . . 11 Best Kill Streak 12 | . 5 12 Combat Bots Only 11 | . 5 11 Max Kills in Single Turn 7 | . 1 7 Gunslinging . | . . . Exploded 6 | . 1 6 Melee . | . . . Uniques/NPCs Destroyed . | . . . Combat | -11 -10 -10 -------- Run | Jun Mat Min Damage Taken 1015 | . 657 358 Core 257 | . 145 112 Absorbed by Shields . | . . . Core Remaining (%) 100 | 100 . . Volleys Fired 69 | . 65 4 Largest 2 | . 2 2 Hottest 60 | . 60 50 Shots Fired 135 | . 128 7 Gun 132 | . 128 4 Cannon . | . . . Launcher 3 | . . 3 Special . | . . . Kinetic 127 | . 123 4 Thermal . | . . . Explosive 3 | . . 3 Electromagnetic 5 | . 5 . Robot Hit Streak 15 | . 15 6 Robot Miss Streak 4 | . 4 1 Penetration Max . | . . . Secondary Targets 3 | . 3 . Max Gunslinging Chain 1 | . 1 . Shots Hit Robots 100 | . 94 6 Core Hits 78 | . 46 32 Critical Kills . | . . . Critical Parts Destroyed 1 | . 1 . Critical Strikes 1 | . 1 . Destroy 1 | . 1 . Melee Attacks . | . . . Impact . | . . . Slashing . | . . . Piercing . | . . . Sneak Attacks . | . . . Combat Hostiles . | . . . Follow-up Attacks . | . . . Damage Inflicted 1827 | . 1136 691 Guns 1073 | . 1048 25 Cannons . | . . . Explosions 743 | . 77 666 Melee . | . . . Ramming 11 | . 11 . Kinetic 995 | . 970 25 Thermal 77 | . 77 . Explosive 666 | . . 666 Electromagnetic 78 | . 78 . Impact . | . . . Slashing . | . . . Piercing . | . . . Highest Corruption 1 | . 1 1 Average Corruption 1 | . 1 1 Corruption Purged . | . . . Corruption Blocked . | . . . Effects 5 | . 4 1 Matter Fused 2 | . 2 . Energy Discharges 1 | . 1 . Parts Rejected 1 | . . 1 Data Loss (minor) 1 | . 1 . Overload Shots . | . . . Overflow Damage 35 | . 17 18 Projectiles . | . . . Explosions 35 | . 17 18 Melee . | . . . Knockbacks . | . . . Impact . | . . . Kinetic . | . . . Secondary . | . . . Self-Inflicted Damage 123 | . 22 101 Shots 4 | . 1 3 Rammed 2 | . 2 . Targets Rammed 2 | . 2 . Kicked . | . . . Crushed . | . . . Highest Temperature 56 | . 42 56 Average Temperature 12 | . 10 35 Received Heat Transfer 414 | . 354 60 Siege Activations . | . . . Robots Corrupted . | . . . Combat Hostiles . | . . . Parts Fried . | . . . Impact Corruptions . | . . . Robots Melted . | . . . Combat Hostiles . | . . . Parts Melted . | . . . Heat Transferred 50 | . 50 . Parts Sabotaged . | . . . Parts Stolen . | . . . Parts Stripped . | . . . Power Chain Reactions 1 | . 1 . Missiles Intercepted . | . . . Alert | -11 -10 -10 ------- Run | Jun Mat Min Peak Influence 248 | . 248 92 Initial 82 | . . 82 Average 120 | . 128 82 Maximum Alert Level 1 | . 1 . Low Security (%) 74 | 100 72 100 Level 1 25 | . 27 . Level 2 . | . . . Level 3 . | . . . Level 4 . | . . . Level 5 . | . . . High Security . | . . . Max Security . | . . . Squads Dispatched 6 | . 6 . Investigation 5 | . 5 . Extermination . | . . . Reinforcement 1 | . 1 . Assault . | . . . Garrison . | . . . Intercept . | . . . Searches Triggered . | . . . Construction Impeded . | . . . Haulers Reinforced . | . . . Active Scanning Responses . | . . . Cargo Convoy Interrupts . | . . . Stealth | -11 -10 -10 --------- Run | Jun Mat Min Distress Signals . | . . . Communications Jammed . | . . . Distress Signals . | . . . Times Spotted 47 | . 27 20 Peak Tracking Total 19 | . 3 19 Tactical Retreats . | . . . Traps | -11 -10 -10 ------- Run | Jun Mat Min Traps Triggered 6 | . 6 . Indirectly . | . . . Trap Hack Attempts . | . . . Triggered . | . . . Disarmed . | . . . Reprogrammed . | . . . Reused . | . . . Traps Extracted . | . . . Installed . | . . . Triggered . | . . . Machines | -11 -10 -10 ---------- Run | Jun Mat Min Machines Disabled . | . . . Max in Single Turn . | . . . Machines Repaired . | . . . Machines Sabotaged . | . . . Overloaded Fab Kills . | . . . Hacking | -11 -10 -10 --------- Run | Jun Mat Min Machines Accessed 9 | . 9 . Terminals 7 | . 7 . Fabricators . | . . . Repair Stations . | . . . Recycling Units 2 | . 2 . Scanalyzers . | . . . Garrison Access . | . . . Total Hacks 17 | . 17 . Successful 9 | . 9 . Failed 8 | . 8 . Catastrophic 1 | . 1 . Database Lockouts . | . . . Manual 14 | . 14 . Terminals 15 | . 15 . Fabricators . | . . . Repair Stations . | . . . Recycling Units 2 | . 2 . Scanalyzers . | . . . Garrison Access . | . . . Terminal Hacks 4 | . 4 . Robot Analysis 2 | . 2 . Hauler Manifests 1 | . 1 . Zone Layout 1 | . 1 . Fabricator Hacks . | . . . Repair Station Hacks . | . . . Recycling Unit Hacks . | . . . Scanalyzer . | . . . Garrison Access Hacks . | . . . Unauthorized Hacks 5 | . 5 . Terminals 3 | . 3 . Botnet 2 | . 2 . Operators 1 | . 1 . Fabricators . | . . . Repair Stations . | . . . Recycling Units 2 | . 2 . Tunnel 2 | . 2 . Scanalyzers . | . . . Garrison Access . | . . . Data Cores Recovered . | . . . Used . | . . . Hacking Detections 5 | . 5 . Full Trace Events 2 | . 2 . Feedback Events . | . . . Feedback Blocked . | . . . Robot Schematics Acquired . | . . . Robots Built . | . . . Authchips . | . . . Time . | . . . Total Robot Build Rating . | . . . Part Schematics Acquired . | . . . Parts Built . | . . . Authchips . | . . . Time . | . . . Total Part Build Rating . | . . . Parts Repaired . | . . . Time . | . . . Parts Recycled . | . . . Recycled Matter . | . . . Retrieved Matter . | . . . Retrieved Components . | . . . Parts Scanalyzed . | . . . Part Schematics Acquired . | . . . Parts Damaged . | . . . Bothacking | -11 -10 -10 ------------ Run | Jun Mat Min Used RIF Installer . | . . . Robots Hacked . | . . . Non-combat . | . . . Combat . | . . . Robot Hacks Applied . | . . . Relay Couplers Released . | . . . Fabnet Peak Effective % . | . . . Robots Rewired . | . . . Allies Hacked . | . . . Hacks Repelled . | . . . Allies | -11 -10 -10 -------- Run | Jun Mat Min Total Allies . | . . . Largest Group . | . . . Highest-Rated Group . | . . . Highest-Rated Ally . | . . . Total Orders . | . . . Ally Attacks . | . . . Total Damage . | . . . Kills . | . . . Allies Corrupted . | . . . Allies Melted . | . . . Intel | -11 -10 -10 ------- Run | Jun Mat Min Robot Analysis Total 2 | . 2 . Derelict Logs Recovered . | . . . Drone Launches . | . . . Drone Recoveries . | . . . Exploration | -11 -10 -10 ------------- Run | Jun Mat Min Turns Passed 1175 | 72 1085 18 Spaces Moved 620 | 41 573 6 Core 5 | 4 1 . Treads 498 | 37 461 . Legs . | . . . Wheels 117 | . 111 6 Hover . | . . . Flight . | . . . Fastest Speed 50 | 50 95 95 Average Speed 147 | 149 147 95 Slowest Speed 160 | 160 160 95 Overloaded Moves . | . . . Propulsion Burnouts . | . . . Robots Hopped . | . . . Cave-ins Triggered . | . . . Exploration Rate (%) 36 | 4 99 7 Regions Visited 2 Branch Regions 1 Pre-discovered Areas 2 | . 2 . Known Exits Taken . | . . . Unknown Exits Taken 2 | 1 1 . Scrap Searched . | . . . Spaces Dug . | . . . Terrain Destroyed 29 | . 2 27 Melee . | . . . Projectile . | . . . AOE 29 | . 2 27 Terrain Rammed . | . . . Walls Destroyed . | . . . Machines Disabled . | . . . Actions | -11 -10 -10 --------- Run | Jun Mat Min Total 753 | 49 692 12 Wait 35 | . 35 . Move 618 | 40 572 6 Hop . | . . . Pick Up 7 | 3 4 . Fast Attach 14 | 6 8 . Attach 4 | . 3 1 Detach . | . . . Swap 4 | . 3 1 Drop . | . . . Fire 69 | . 65 4 Melee . | . . . Ram . | . . . Kick . | . . . Crush 2 | . 2 . Escape Stasis . | . . . Rewire . | . . . Trap . | . . . Miscellaneous . | . . . Route ------- -11/Junkyard -10/Materials (discovered 5 exits: [*Mat x3] / [*Min x2]) -10/Mines History --------- Turn | Location | Event 2 | -11/Junkyard | Discovered new exit (range 16) 73 | -11/Junkyard | Entered Materials 83 | -10/Materials | Discovered new exit (range 15) 304 | -10/Materials | Build established: Mutant 414 | -10/Materials | Discovered new exit (range 16) 631 | -10/Materials | Discovered new exit (range 5) 828 | -10/Materials | Discovered new exit (range 8) 995 | -10/Materials | Core integrity fell below 50% 1031 | -10/Materials | Discovered new exit (range 14) 1158 | -10/Materials | Entered Mines 1159 | -10/Mines | Assembled infested the area 1171 | -10/Mines | Core integrity fell below 20% 1176 | -10/Mines | Met 8R-AWN 1176 | -10/Mines | Destroyed by 8R-AWN with 8R-AWN's Boregun Last Messages --------------- 01171_ as-92848 destroyed. 01172_ as-37512 destroyed. 01176_ System corrupted: Wheel rejected. 01176_ as-48864 powers down. 01176_ as-48022 powers down. 01176_ as-08793 powers down. 01176_ as-24080 powers down. 01176_ as-99720 powers down. 01176_ as-72288 powers down. 01176_ as-36715 powers down. 01176_ as-55295 powers down. 8R-AWN: Hm, I'm not getting any readings that show these Assembled are different than what we have already... But you... you look interesting. Maybe they'll want to see you. Come along little bot, it's safer with us than out here, anyway. 01176_ HV Slug penetrates Wall. 01176_ HV Slug penetrates as-48022. 01176_ as-48022 suffers critical hit (Destroy). 01176_ as-48022 destroyed. 01176_ Penetrated by HV Slug. Map ----- +----------------------------------------------------+ | ??????????????????????????????????????????????? | | ??????????????????????????????????????????????? | | ??????????????????????????????????????????????? | | ??????????????????????????????????????????????? | | ??????????????????????????????????????????????? | | ??????????????????????????????????????????????? | | ??????????????????????????????????????????????? | | ??????????????????????????????????????????????? | | ??????????????????????????????????????????????? | | ??????????????????????????????????????????????? | | ??????????????????????????????????????????????? | | ??????????????????????????????????????????????? | | ??????????????????????????????????????????????? | | ??????????????????????????????????????????????? | | ??????????????????????????????????????????????? | | ??????????????????????????????????????????????? | | ??????????????????????????????????????????????? | | ??????????????????????????????????????????????? | | ?????????????####????###??????????????????????? | | ?????????????? ??? #?????##???????????????? | | ??????????????? ??a #???? ????????????????? | | ????????????????# ###a##?? ??????????????????? | | ????????????????# a # ## ???????????????????? | | ????????????????# a% ????????????????????? | | ????????????######a a% #?????????????????????? | | ????? < g %= @ #?????????????????????? | | ????? ### # %=a ??????????????????? | | ?????????????????# # %= # ??????????????? | | ????????????????#####!## ? #??????????? | | ????????????????# # ? #?????????? | | ????????????????# #? ?? ??????????? | | ????????????????# #? ??? ??????????? | | ????????????????# #?? ??? ??????????? | | ????????????????# #?? ???? ???????????? | | ????????????????########??? ???? ???????????? | | ??????????????????????????? ????????????????? | | ???????????????????????????? ???????????????? | | ???????????????????????????? #??????????????? | | ?????????????????????????????#????????????????? | | ??????????????????????????????????????????????? | | ??????????????????????????????????????????????? | | | | | | | | | | | | | | | | | | | +----------------------------------------------------+ Best States ------------- Heat Dissipation 25 Energy Generation 10 Energy Capacity 250 Matter Stores 300 Matter Capacity 300 Sight Range 16 Terrain Scan Density 10 Armor Coverage 150 Evasion (%) 41 Recoil Reduction 2 Item Schematics ----------------- None Robot Schematics ------------------ None Fabricated ------------ Nothing Alien Tech Used ----------------- None Achievements -------------- None Challenges ------------ None Game ------ Seed ChromaticGlidesysBuckler Manual? 0 Play Time 00:06:16 Cumulative 134.4 hours Start 2024.01.25 @ 08:50:41 End 2024.01.25 @ 08:56:30 Sessions 1 Manual Loads 0 Difficulty Rogue Special Mode None Game No. 134 Rogue 134 Adventurer 0 Explorer 0 Win Type - Total 2 Types 2/0/0/0/0/0/0/0/0 Lore% 56 Gallery% 62 Achievement% 54 Wizard Run 0 Options --------- ASCII 0 Keyboard 1 Movement Numpad Keybinds 0 Fullscreen 2 Font 18/SmallcapsGlow Map View 76x50 Tactical HUD 1 Map Filters NONE Filters NONE Steam 1 RUN: 2a41f482-90e9-4f34-92ea-be752c3dd475